fUST/lending_fUST_20250716
["ID","MTS","AMOUNT","RATE_DAILY","PERIOD"]
[372446727,1752647446976,-849.33,0.00021917,2]
[372446730,1752647446986,-460.0,0.00021917,2]
[372446732,1752647446996,-460.0,0.00021917,2]
[372446734,1752647447006,-460.0,0.00021917,2]
[372446736,1752647447015,-660.68,0.00021917,2]
[372446738,1752647447024,-1639.91,0.00021917,2]
[372446739,1752647447034,-3626.51,0.00021917,2]
[372446741,1752647447043,-902.07,0.00021917,2]
[372446744,1752647447053,-1322.42,0.00021917,2]
[372446746,1752647447063,-1087.59,0.00021917,2]
[372446748,1752647447072,-892.06,0.00021917,2]
[372446750,1752647447081,-2566.41,0.00021917,2]
[372446752,1752647447090,-944.71,0.00021917,2]
[372446754,1752647447099,-871.34,0.00021917,2]
[372446756,1752647447108,-460.0,0.00021917,2]
[372446758,1752647447118,-460.0,0.00021917,2]
[372446760,1752647447127,-460.0,0.00021917,2]
[372446762,1752647447135,-460.0,0.00021917,2]
[372446764,1752647447145,-460.0,0.00021917,2]
[372446766,1752647447154,-501.02878966,0.00021973,2]
[372446768,1752647447163,-501.55765168,0.00021973,2]
[372446770,1752647447172,-500.75307769,0.00021973,2]
[372446772,1752647447182,-503.18757773,0.00021973,2]
[372446774,1752647447191,-500.0,0.00021973,2]
[372446776,1752647447200,-522.8646343,0.00021973,2]
[372446778,1752647447209,-500.0,0.00021973,2]
[372446780,1752647447219,-500.0,0.00021973,2]
[372446782,1752647447228,-500.0,0.00021973,2]
[372446784,1752647447237,-500.0,0.00021973,2]
[372446786,1752647447246,-16197.21318736,0.00022,10]
[372446788,1752647447258,-409.0006823,0.00022,10]
[372450898,1752647549691,-4085.93262678,0.00019078,2]
[372450899,1752647549716,-1200.0,0.00019177,2]
[372450900,1752647549738,-300.0,0.00019177,2]
[372450901,1752647549762,-460.0,0.00019178,2]
[372450902,1752647549784,-462.24747764,0.00019178,2]
[372450903,1752647549809,-1073.97,0.00019178,2]
[372450904,1752647549832,-2730.12,0.00019178,2]
[372450905,1752647549853,-460.0,0.00019178,2]
[372450906,1752647549875,-460.0,0.00019178,2]
[372450907,1752647549898,-460.0,0.00019178,2]
[372450908,1752647549921,-460.0,0.00019178,2]
[372450909,1752647549942,-460.0,0.00019178,2]
[372450910,1752647549963,-285.11,0.00019178,2]
[372450911,1752647549995,-535.16,0.00019178,2]
[372450912,1752647550016,-460.0,0.00019178,2]
[372450913,1752647550042,-460.0,0.00019178,2]
[372450914,1752647550063,-460.0,0.00019178,2]
[372450915,1752647550085,-589.11,0.00019178,2]
[372450916,1752647550107,-2108.6,0.00019178,2]
[372450917,1752647550130,-716.31,0.00019178,2]
[372450918,1752647550150,-460.0,0.00019178,2]
[372450919,1752647550171,-460.0,0.00019178,2]
[372450920,1752647550192,-460.0,0.00019178,2]
[372450921,1752647550213,-460.0,0.00019178,2]
[372450922,1752647550233,-460.0,0.00019178,2]
[372450923,1752647550253,-460.0,0.00019178,2]
[372450924,1752647550274,-562.41552696,0.00019178,2]
[372450925,1752647550295,-460.0,0.00019178,2]
[372450926,1752647550315,-500.0,0.00019178,2]
[372450927,1752647550336,-502.96032268,0.00019178,2]
[372450928,1752647550357,-460.0,0.00019178,2]
[372450929,1752647550377,-460.0,0.00019178,2]
[372450930,1752647550398,-460.0,0.00019178,2]
[372450931,1752647550418,-460.0,0.00019178,2]
[372450932,1752647550438,-460.0,0.00019178,2]
[372450933,1752647550459,-460.54866141,0.00019178,2]
[372450934,1752647550479,-460.0,0.00019178,2]
[372450935,1752647550500,-458.34409991,0.00019178,2]
[372450936,1752647550523,-460.0,0.00019178,2]
[372450937,1752647550546,-1579.27,0.00019178,2]
[372450938,1752647550569,-588.3,0.00019178,2]
[372450939,1752647550590,-460.0,0.00019178,2]
[372450940,1752647550613,-1083.57,0.00019178,2]
[372450941,1752647550633,-253.2426375,0.00019178,2]
[372450942,1752647550654,-460.0,0.00019178,2]
[372450943,1752647550677,-532.23,0.00019178,2]
[372450944,1752647550700,-537.13,0.00019178,2]
[372450945,1752647550724,-460.0,0.00019178,2]
[372450946,1752647550745,-460.0,0.00019178,2]
[372450947,1752647550767,-439.83,0.00019452,2]
[372450948,1752647550791,-460.0,0.00019452,2]
[372450949,1752647550813,-1073.97,0.00019452,2]
[372450950,1752647550835,-2730.12,0.00019452,2]
[372450951,1752647550859,-460.0,0.00019452,2]
[372450952,1752647550884,-460.0,0.00019452,2]
[372450953,1752647550908,-535.16,0.00019452,2]
[372450954,1752647550934,-460.0,0.00019452,2]
[372450955,1752647550960,-589.11,0.00019452,2]
[372450956,1752647550978,-2108.6,0.00019452,2]
[372450957,1752647551000,-716.31,0.00019452,2]
[372450958,1752647551020,-513.51080224,0.00019452,2]
[372450959,1752647551040,-460.0,0.00019452,2]
[372450960,1752647551066,-1579.27,0.00019452,2]
[372450961,1752647551091,-588.3,0.00019452,2]
[372450962,1752647551113,-1083.57,0.00019452,2]
[372450963,1752647551135,-460.0,0.00019452,2]
[372450964,1752647551158,-532.23,0.00019452,2]
[372450965,1752647551183,-537.13,0.00019452,2]
[372450966,1752647551206,-460.0,0.00019726,2]
[372450967,1752647551228,-1073.97,0.00019726,2]
[372450968,1752647551251,-2730.12,0.00019726,2]
[372450969,1752647551274,-460.0,0.00019726,2]
[372450970,1752647551296,-460.0,0.00019726,2]
[372450971,1752647551319,-535.16,0.00019726,2]
[372450972,1752647551343,-460.0,0.00019726,2]
[372450973,1752647551367,-589.11,0.00019726,2]
[372450974,1752647551390,-2108.6,0.00019726,2]
[372450975,1752647551413,-716.31,0.00019726,2]
[372450976,1752647551435,-459.59349225,0.00019726,2]
[372450977,1752647551458,-1251.45435263,0.00019726,2]
[372450989,1752647647269,-300.0,0.00019177,2]
[372450990,1752647647291,-460.0,0.00019178,2]
[372450991,1752647647312,-160.0,0.00019178,2]
[372450994,1752647733933,10000.0,0.00025629,50]
[372450995,1752647747745,10000.0,0.00025629,50]
[372450997,1752647754485,10000.0,0.00025629,50]
[372451012,1752648096788,3183.28260949,0.00016307,2]
[372451013,1752648097588,3183.28260949,0.00016604,2]
[372451014,1752648098361,3183.28260949,0.00016821,2]
[372451015,1752648098697,3183.28260949,0.00017217,2]
[372451016,1752648099007,157.51717486,0.0001751,2]
[372451017,1752648099034,3025.76543463,0.0001751,2]
[372451018,1752648099339,3183.28260949,0.00017534,2]
[372451019,1752648099651,3183.28260949,0.00017869,2]
[372451020,1752648103035,157.51717486,0.00018077,2]
[372451022,1752648162357,-3025.0,0.00018119,2]
[372451023,1752648182836,3624.73027437,0.000181,2]
[372451024,1752648234063,-158.28260949,0.00018119,2]
[372451025,1752648234085,-155.71739051,0.00018119,2]
[372451029,1752648312908,3509.64246791,0.000181,2]
[372451030,1752648341107,-191.307124,0.00018177,2]
[372451031,1752648341129,-1339.74288165,0.00018242,2]
[372451032,1752648358087,-2290.9349136,0.00018242,2]
[372451036,1752648425084,-509.77476595,0.00018177,2]
[372451037,1752648425108,-674.12006336,0.00018242,2]
[372451039,1752648446088,-848.12211809,0.00018242,2]
[372451040,1752648446110,-1200.0,0.00019075,2]
[372451041,1752648446131,-300.0,0.00019075,2]
[372451042,1752648446155,-1200.0,0.00019076,2]
[372451043,1752648446177,-300.0,0.00019076,2]
[372451044,1752648446198,-296.0,0.00019076,2]
[372451045,1752648446218,-300.0,0.00019077,2]
[372451046,1752648446238,-300.0,0.00019077,2]
[372451047,1752648446259,-300.0,0.00019077,2]
[372451048,1752648446281,-491.90857737,0.00019078,2]
[372451049,1752648446419,-4564.78774515,0.00019078,2]
[372451050,1752648448106,-527.62375756,0.00019078,2]
[372451051,1752648448127,-545.21,0.00019168,3]
[372451052,1752648448152,-272.61,0.00019168,3]
[372451053,1752648448173,-817.85,0.00019168,3]
[372451054,1752648448193,-502.38498412,0.00019173,2]
[372451055,1752648448216,-500.0,0.00019176,2]
[372451056,1752648448237,-500.0,0.00019176,2]
[372451057,1752648448262,-527.25008012,0.00019176,2]
[372451058,1752648448285,-500.0,0.00019176,2]
[372451059,1752648448307,-500.0,0.00019176,2]
[372451060,1752648448330,-500.0,0.00019176,2]
[372451061,1752648448358,-500.0,0.00019176,2]
[372451062,1752648448382,-486.14976277,0.00019176,2]
[372451063,1752648448407,-543.93846394,0.00019176,2]
[372451064,1752648448428,-153.9702501,0.00019176,2]
[372451065,1752648448449,-500.0,0.00019176,2]
[372451066,1752648448470,-500.0,0.00019176,2]
[372451067,1752648448493,-500.0,0.00019176,2]
[372451068,1752648448515,-500.0,0.00019176,2]
[372451069,1752648448535,-466.55790172,0.00019176,2]
[372451070,1752648448560,-500.0,0.00019176,2]
[372451071,1752648448584,-43.75198764,0.00019176,2]
[372451073,1752648462459,356.82399,0.00013699,2]
[372451090,1752648580223,-200.26203687,0.00019076,2]
[372451091,1752648580245,-200.26203687,0.00019078,2]
[372451092,1752648580267,-3209.66365447,0.0001911,2]
[372451093,1752648580291,-300.0,0.00019176,2]
[372451094,1752648580314,-286.91451854,0.00019177,2]
[372451095,1752648580336,-500.0,0.00019177,2]
[372451096,1752648580359,-456.24801236,0.00019177,2]
[372451097,1752648580381,-500.0,0.00019177,2]
[372451098,1752648580404,-500.0,0.00019177,2]
[372451099,1752648580428,-500.0,0.00019177,2]
[372451100,1752648580451,-500.0,0.00019177,2]
[372451101,1752648580682,-415.09806127,0.00019177,2]
[372451102,1752648580706,-510.46100809,0.00019177,2]
[372451103,1752648580731,-228.92874274,0.00019177,2]
[372451104,1752648580754,-500.0,0.00019177,2]
[372451105,1752648580777,-500.0,0.00019177,2]
[372451106,1752648580800,-500.0,0.00019177,2]
[372451107,1752648580823,-154.3938464,0.00019177,2]
[372451108,1752648580846,-500.0,0.00019177,2]
[372451109,1752648580868,-461.93152296,0.00019178,2]
[372451110,1752648580891,-460.0,0.00019178,2]
[372451111,1752648580913,-460.0,0.00019178,2]
[372451112,1752648580935,-460.0,0.00019178,2]
[372451113,1752648580957,-460.0,0.00019178,2]
[372451114,1752648580978,-460.0,0.00019178,2]
[372451115,1752648580998,-460.0,0.00019178,2]
[372451116,1752648581019,-460.88465898,0.00019178,2]
[372451117,1752648581040,-461.29102643,0.00019178,2]
[372451118,1752648581061,-461.04137672,0.00019178,2]
[372451119,1752648581082,-460.77966323,0.00019178,2]
[372451120,1752648581106,-460.54824321,0.00019178,2]
[372451121,1752648581128,-460.0,0.00019178,2]
[372451122,1752648581150,-460.0,0.00019178,2]
[372451123,1752648581171,-460.0,0.00019178,2]
[372451124,1752648581193,-460.0,0.00019178,2]
[372451125,1752648581215,-460.0,0.00019178,2]
[372451126,1752648581236,-460.0,0.00019178,2]
[372451127,1752648581257,-460.0,0.00019178,2]
[372451128,1752648581280,-460.0,0.00019178,2]
[372451129,1752648581302,-460.0,0.00019178,2]
[372451130,1752648581328,-460.855006,0.00019178,2]
[372451131,1752648581351,-219.68636235,0.00019178,2]
[372451132,1752648581373,-460.0,0.00019178,2]
[372451133,1752648581396,-460.0,0.00019178,2]
[372451134,1752648581417,-460.0,0.00019178,2]
[372451135,1752648581439,-460.0,0.00019178,2]
[372451136,1752648581460,-215.96008498,0.00019178,2]
[372451137,1752648581481,-460.0,0.00019178,2]
[372451138,1752648581504,-460.0,0.00019178,2]
[372451139,1752648581526,-334.67780035,0.00019178,2]
[372451140,1752648581547,-179.14599439,0.00019178,2]
[372451141,1752648581568,-460.0,0.00019178,2]
[372451142,1752648581590,-460.0,0.00019178,2]
[372451143,1752648581616,-460.6907212,0.00019178,2]
[372451144,1752648581639,-460.0,0.00019178,2]
[372451145,1752648581661,-461.25858092,0.00019178,2]
[372451146,1752648581684,-460.0,0.00019178,2]
[372451147,1752648581707,-460.0,0.00019178,2]
[372451148,1752648581729,-460.0,0.00019178,2]
[372451149,1752648581751,-460.0,0.00019178,2]
[372451150,1752648581774,-448.91782773,0.00019178,2]
[372451151,1752648581797,-432.20930398,0.00019178,2]
[372451152,1752648581818,-460.65281982,0.00019178,2]
[372451153,1752648581840,-460.0,0.00019178,2]
[372451154,1752648581862,-460.0,0.00019178,2]
[372451155,1752648581886,-374.80623903,0.00019178,2]
[372451156,1752648581909,-460.0,0.00019178,2]
[372451157,1752648581931,-460.0,0.00019178,2]
[372451158,1752648581954,-460.0,0.00019178,2]
[372451159,1752648581976,-460.0,0.00019178,2]
[372451160,1752648582000,-460.0,0.00019178,2]
[372451161,1752648582022,-460.0,0.00019178,2]
[372451162,1752648582044,-460.0,0.00019178,2]
[372451163,1752648582066,-460.0,0.00019178,2]
[372451164,1752648582087,-460.0,0.00019178,2]
[372451165,1752648582212,-460.0,0.00019178,2]
[372451166,1752648582235,-460.0,0.00019178,2]
[372451167,1752648582257,-296.25,0.00019178,2]
[372451168,1752648582280,-419.64609505,0.00019178,2]
[372451169,1752648582303,-460.0,0.00019178,2]
[372451170,1752648582326,-161.00188062,0.00019178,2]
[372451171,1752648582348,-461.59801402,0.00019178,2]
[372451172,1752648582370,-460.0,0.00019178,2]
[372451173,1752648582393,-460.0,0.00019178,2]
[372451174,1752648582414,-460.0,0.00019178,2]
[372451175,1752648582437,-460.0,0.00019178,2]
[372451176,1752648582459,-460.0,0.00019178,2]
[372451177,1752648582482,-460.80861372,0.00019178,2]
[372451178,1752648582505,-460.0,0.00019178,2]
[372451179,1752648582527,-460.0,0.00019178,2]
[372451180,1752648582549,-460.0,0.00019178,2]
[372451181,1752648582570,-460.39920047,0.00019178,2]
[372451182,1752648582591,-460.0,0.00019178,2]
[372451183,1752648582614,-361.7808345,0.00019178,2]
[372451184,1752648582636,-460.0,0.00019178,2]
[372451185,1752648582660,-460.0,0.00019178,2]
[372451186,1752648582684,-342.261144,0.00019178,2]
[372451187,1752648582706,-460.0,0.00019178,2]
[372451188,1752648582727,-387.74535171,0.00019178,2]
[372451189,1752648582749,-463.07701952,0.00019178,2]
[372451190,1752648582770,-460.0,0.00019178,2]
[372451191,1752648582791,-461.1115783,0.00019178,2]
[372451192,1752648582812,-443.22239712,0.00019178,2]
[372451193,1752648582832,-460.0,0.00019178,2]
[372451194,1752648582855,-460.0,0.00019178,2]
[372451195,1752648582877,-460.0,0.00019178,2]
[372451196,1752648582899,-460.0,0.00019178,2]
[372451197,1752648582920,-460.0,0.00019178,2]
[372451198,1752648582941,-460.0,0.00019178,2]
[372451199,1752648582961,-460.0,0.00019178,2]
[372451200,1752648582981,-152.04804976,0.00019178,2]
[372451201,1752648583001,-377.36032985,0.00019178,2]
[372451202,1752648583021,-460.0,0.00019178,2]
[372451203,1752648583040,-462.04488447,0.00019178,2]
[372451204,1752648583059,-460.0,0.00019178,2]
[372451205,1752648583080,-460.0,0.00019178,2]
[372451206,1752648583104,-460.0,0.00019178,2]
[372451207,1752648583125,-460.0,0.00019178,2]
[372451208,1752648583147,-460.0,0.00019178,2]
[372451209,1752648583168,-460.0,0.00019178,2]
[372451210,1752648583191,-535.0,0.00019178,2]
[372451211,1752648583212,-460.0,0.00019178,2]
[372451212,1752648583233,-460.0,0.00019178,2]
[372451213,1752648583254,-502.61622865,0.00019178,2]
[372451214,1752648583275,-460.0,0.00019178,2]
[372451215,1752648583295,-460.0,0.00019178,2]
[372451216,1752648583315,-460.0,0.00019178,2]
[372451217,1752648583334,-460.0,0.00019178,2]
[372451218,1752648583356,-460.0,0.00019178,2]
[372451219,1752648583378,-460.0,0.00019178,2]
[372451220,1752648583400,-460.0,0.00019178,2]
[372451221,1752648583422,-460.0,0.00019178,2]
[372451222,1752648583443,-460.0,0.00019178,2]
[372451223,1752648583465,-460.0,0.00019178,2]
[372451224,1752648583487,-460.0,0.00019178,2]
[372451225,1752648583507,-460.0,0.00019178,2]
[372451226,1752648583530,-460.0,0.00019178,2]
[372451227,1752648583562,-461.90561953,0.00019178,2]
[372451228,1752648583583,-460.0,0.00019178,2]
[372451229,1752648583605,-460.0,0.00019178,2]
[372451230,1752648583629,-460.0,0.00019178,2]
[372451231,1752648583649,-460.0,0.00019178,2]
[372451232,1752648583670,-460.0,0.00019178,2]
[372451233,1752648583692,-460.0,0.00019178,2]
[372451234,1752648583714,-468.37553705,0.00019178,2]
[372451235,1752648583736,-460.0,0.00019178,2]
[372451236,1752648583759,-460.0,0.00019178,2]
[372451237,1752648583782,-460.0,0.00019178,2]
[372451238,1752648583805,-460.0,0.00019178,2]
[372451239,1752648583827,-460.0,0.00019178,2]
[372451240,1752648583848,-460.95303561,0.00019178,2]
[372451241,1752648583871,-460.0,0.00019178,2]
[372451242,1752648583894,-460.0,0.00019178,2]
[372451243,1752648583917,-460.0,0.00019178,2]
[372451244,1752648583938,-460.0,0.00019178,2]
[372451245,1752648583960,-460.0,0.00019178,2]
[372451246,1752648583982,-460.0,0.00019178,2]
[372451247,1752648584004,-460.0,0.00019178,2]
[372451248,1752648584024,-460.0,0.00019178,2]
[372451249,1752648584046,-500.0,0.00019178,2]
[372451250,1752648584067,-460.0,0.00019178,2]
[372451251,1752648584089,-460.0,0.00019178,2]
[372451252,1752648584115,-460.0,0.00019178,2]
[372451253,1752648584139,-323.22503616,0.00019178,2]
[372451268,1752648632743,-430.42000519,0.00019078,2]
[372451269,1752648632755,-300.0,0.00019177,2]
[372451270,1752648632766,-64.73499481,0.00019177,2]
[372451271,1752648632781,-235.26500519,0.00019177,2]
[372451273,1752648632793,-300.0,0.00019177,2]
[372451275,1752648632804,-1200.0,0.00019177,2]
[372451278,1752648632816,-300.0,0.00019177,2]
[372451280,1752648632827,-136.77496384,0.00019178,2]
[372451282,1752648632838,-460.0,0.00019178,2]
[372451284,1752648632849,-460.0,0.00019178,2]
[372451286,1752648632861,-460.0,0.00019178,2]
[372451288,1752648632872,-460.0,0.00019178,2]
[372451291,1752648632884,-460.0,0.00019178,2]
[372451293,1752648632895,-460.8809083,0.00019178,2]
[372451295,1752648632907,-460.0,0.00019178,2]
[372451299,1752648632918,-460.0,0.00019178,2]
[372451302,1752648632930,-459.93381306,0.00019178,2]
[372451306,1752648632942,-460.0,0.00019178,2]
[372451309,1752648632953,-460.0,0.00019178,2]
[372451312,1752648632963,-460.0,0.00019178,2]
[372451315,1752648632972,-460.0,0.00019178,2]
[372451317,1752648632981,-460.0,0.00019178,2]
[372451319,1752648632991,-461.46166711,0.00019178,2]
[372451320,1752648633000,-460.0,0.00019178,2]
[372451322,1752648633010,-460.0,0.00019178,2]
[372451324,1752648633019,-460.0,0.00019178,2]
[372451327,1752648633030,-460.0,0.00019178,2]
[372451343,1752648633191,-460.0,0.00019178,2]
[372451346,1752648633213,-460.0,0.00019178,2]
[372451349,1752648633223,-460.0,0.00019178,2]
[372451350,1752648633233,-460.0,0.00019178,2]
[372451353,1752648633243,-460.0,0.00019178,2]
[372451355,1752648633252,-460.0,0.00019178,2]
[372451356,1752648633262,-460.0,0.00019178,2]
[372451358,1752648633272,-460.0,0.00019178,2]
[372451360,1752648633281,-460.0,0.00019178,2]
[372451362,1752648633290,-460.0,0.00019178,2]
[372451364,1752648633301,-460.0,0.00019178,2]
[372451366,1752648633310,-460.0,0.00019178,2]
[372451368,1752648633320,-460.0,0.00019178,2]
[372451370,1752648633331,-461.27915219,0.00019178,2]
[372451372,1752648633341,-460.0,0.00019178,2]
[372451374,1752648633351,-460.0,0.00019178,2]
[372451376,1752648633361,-243.73480172,0.00019178,2]
[372451378,1752648633370,-618.79,0.00019178,2]
[372451380,1752648633381,-460.0,0.00019178,2]
[372451382,1752648633391,-460.0,0.00019178,2]
[372451384,1752648633400,-460.0,0.00019178,2]
[372451386,1752648633410,-463.82155669,0.00019178,2]
[372451388,1752648633419,-460.0,0.00019178,2]
[372451390,1752648633429,-460.0,0.00019178,2]
[372451392,1752648633439,-460.0,0.00019178,2]
[372451394,1752648633449,-3142.52,0.00019178,2]
[372451396,1752648633458,-460.0,0.00019178,2]
[372451398,1752648633467,-460.0,0.00019178,2]
[372451400,1752648633477,-460.0,0.00019178,2]
[372451402,1752648633486,-461.04734821,0.00019178,2]
[372451404,1752648633496,-460.0,0.00019178,2]
[372451406,1752648633505,-461.28036586,0.00019178,2]
[372451408,1752648633514,-460.0,0.00019178,2]
[372451410,1752648633524,-460.0,0.00019178,2]
[372451412,1752648633533,-460.0,0.00019178,2]
[372451414,1752648633543,-460.0,0.00019178,2]
[372451416,1752648633552,-460.0,0.00019178,2]
[372451418,1752648633562,-409.65239945,0.00019178,2]
[372451420,1752648633571,-873.19,0.00019178,2]
[372451422,1752648633581,-460.0,0.00019178,2]
[372451424,1752648633590,-460.0,0.00019178,2]
[372451426,1752648633600,-460.0,0.00019178,2]
[372451428,1752648633610,-460.0,0.00019178,2]
[372451430,1752648633619,-460.97482666,0.00019178,2]
[372451432,1752648633629,-460.0,0.00019178,2]
[372451434,1752648633639,-460.0,0.00019178,2]
[372451436,1752648633648,-460.0,0.00019178,2]
[372451438,1752648633658,-460.0,0.00019178,2]
[372451440,1752648633667,-460.0,0.00019178,2]
[372451441,1752648633679,-460.0,0.00019178,2]
[372451443,1752648633689,-337.7942338,0.00019178,2]
[372451445,1752648633698,-460.0,0.00019178,2]
[372451447,1752648633708,-460.0,0.00019178,2]
[372451449,1752648633718,-462.39473424,0.00019178,2]
[372451451,1752648633728,-460.0,0.00019178,2]
[372451453,1752648633737,-460.0,0.00019178,2]
[372451455,1752648633747,-460.0,0.00019178,2]
[372451457,1752648633757,-254.52,0.00019178,2]
[372451459,1752648633766,-460.0,0.00019178,2]
[372451461,1752648633776,-460.0,0.00019178,2]
[372451463,1752648633785,-460.0,0.00019178,2]
[372451465,1752648633794,-460.0,0.00019178,2]
[372451467,1752648633804,-460.0,0.00019178,2]
[372451469,1752648633814,-460.0,0.00019178,2]
[372451471,1752648633824,-460.0,0.00019178,2]
[372451473,1752648633834,-460.0,0.00019178,2]
[372451475,1752648633844,-460.0,0.00019178,2]
[372451477,1752648633853,-460.0,0.00019178,2]
[372451479,1752648633862,-460.0,0.00019178,2]
[372451481,1752648633871,-460.0,0.00019178,2]
[372451483,1752648633880,-460.0,0.00019178,2]
[372451485,1752648633890,-460.0,0.00019178,2]
[372451487,1752648633900,-460.51561485,0.00019178,2]
[372451489,1752648633909,-460.0,0.00019178,2]
[372451490,1752648633918,-460.0,0.00019178,2]
[372451491,1752648633929,-460.0,0.00019178,2]
[372451492,1752648633939,-460.0,0.00019178,2]
[372451493,1752648633948,-1646.28,0.00019178,2]
[372451494,1752648633958,-460.0,0.00019178,2]
[372451496,1752648633968,-500.0,0.00019178,2]
[372451498,1752648633977,-500.0,0.00019178,2]
[372451500,1752648633986,-500.0,0.00019178,2]
[372451502,1752648633996,-500.0,0.00019178,2]
[372451504,1752648634005,-460.0,0.00019178,2]
[372451506,1752648634015,-277.97047678,0.00019178,2]
[372451508,1752648634025,-565.14,0.00019178,2]
[372451509,1752648634035,-3220.97813207,0.00019178,2]
[372451510,1752648634048,-471.98987529,0.00019178,2]
[372451511,1752648634065,-313.73916419,0.00019178,2]
[372451512,1752648634077,-135.21282845,0.00019178,2]
[372451513,1752648634088,-387.11106331,0.00019178,2]
[372451514,1752648634100,-72.88893669,0.00019178,2]
[372451515,1752648634111,-460.0,0.00019178,2]
[372451516,1752648634121,-460.0,0.00019178,2]
[372451517,1752648634131,-1367.06,0.00019178,2]
[372451518,1752648634140,-897.84,0.00019178,2]
[372451519,1752648634151,-460.0,0.00019178,2]
[372451520,1752648634161,-283.73294439,0.00019178,2]
[372451521,1752648634171,-460.0,0.00019178,2]
[372451522,1752648634181,-460.0,0.00019178,2]
[372451523,1752648634192,-460.0,0.00019178,2]
[372451524,1752648634202,-460.0,0.00019178,2]
[372451525,1752648634212,-7.05546473,0.00019178,2]
[372451543,1752648638718,-456.23242132,0.00019178,2]
[372451544,1752648638730,-468.33360053,0.00019178,2]
[372451546,1752648638740,-460.0,0.00019178,2]
[372451547,1752648638750,-460.0,0.00019178,2]
[372451548,1752648638759,-460.66124518,0.00019178,2]
[372451549,1752648638769,-460.0,0.00019178,2]
[372451550,1752648638778,-174.98506148,0.00019178,2]
[372451551,1752648638789,-460.0,0.00019178,2]
[372451552,1752648638798,-460.0,0.00019178,2]
[372451553,1752648638808,-462.86513776,0.00019178,2]
[372451554,1752648638818,-1546.43286314,0.00019178,2]
[372451555,1752648638830,-1411.62713686,0.00019178,2]
[372451556,1752648638840,-460.0,0.00019178,2]
[372451557,1752648638849,-460.0,0.00019178,2]
[372451558,1752648638859,-460.0,0.00019178,2]
[372451559,1752648638869,-460.0,0.00019178,2]
[372451560,1752648638879,-460.0,0.00019178,2]
[372451561,1752648638888,-166.01835406,0.00019178,2]
[372451562,1752648638900,-293.98164594,0.00019178,2]
[372451563,1752648638910,-519.62454663,0.00019178,2]
[372451564,1752648638920,-460.0,0.00019178,2]
[372451565,1752648638930,-352.3695252,0.00019178,2]
[372451566,1752648638943,-107.6304748,0.00019178,2]
[372451567,1752648638958,-460.0,0.00019178,2]
[372451568,1752648638968,-460.0,0.00019178,2]
[372451569,1752648638977,-338.74065026,0.00019178,2]
[372451570,1752648638989,-121.25934974,0.00019178,2]
[372451571,1752648638999,-460.0,0.00019178,2]
[372451572,1752648639008,-460.0,0.00019178,2]
[372451573,1752648639018,-460.0,0.00019178,2]
[372451574,1752648639028,-460.0,0.00019178,2]
[372451575,1752648639037,-460.0,0.00019178,2]
[372451576,1752648639046,-460.0,0.00019178,2]
[372451577,1752648639056,-460.0,0.00019178,2]
[372451578,1752648639067,-460.0,0.00019178,2]
[372451579,1752648639076,-460.0,0.00019178,2]